bitfinex-derivatives/quotes_BTCF0:USTF0_20240913
["timestamp","ask_amount","ask_price","bid_price","bid_amount"]
[1726223618850,0.28431095,58193.0,58192.0,0.087918]
[1726223619055,0.13000899,58193.0,58192.0,0.087918]
[1726223619255,0.21592499,58193.0,58192.0,0.087918]
[1726223620558,0.21592491,58193.0,58192.0,0.087918]
[1726223621961,0.13000891,58193.0,58192.0,0.087918]
[1726223623554,0.31886824,58193.0,58192.0,0.087918]
[1726223624664,0.36232731,58193.0,58192.0,0.087918]
[1726223624861,0.30147689,58193.0,58192.0,0.087918]
[1726223625058,0.30147742,58193.0,58192.0,0.087918]
[1726223625366,0.002,58193.0,58192.0,0.087918]
[1726223630273,0.002,58193.0,58192.0,0.13941719]
[1726223631377,0.002,58193.0,58192.0,0.087918]
[1726223639267,0.087916,58193.0,58192.0,0.087918]
[1726223640378,0.2159251,58193.0,58192.0,0.002]
[1726223640570,0.43927657,58193.0,58192.0,0.002]
[1726223640874,0.43927651,58193.0,58192.0,0.002]
[1726223642272,0.43927651,58193.0,58192.0,0.087918]
[1726223642473,0.27755248,58193.0,58192.0,0.087918]
[1726223642681,0.21592504,58193.0,58192.0,0.087918]
[1726223643471,0.43941551,58193.0,58192.0,0.087918]
[1726223643673,0.35349951,58193.0,58192.0,0.087918]
[1726223643874,0.13000904,58193.0,58192.0,0.654636]
[1726223644081,0.13000904,58193.0,58192.0,0.568718]
[1726223644275,0.26635988,58193.0,58192.0,0.568718]
[1726223644481,0.13000904,58193.0,58192.0,0.087918]
[1726223645076,0.13000424,58193.0,58192.0,0.087918]
[1726223647376,0.13000424,58193.0,58192.0,0.1394143]
[1726223647377,0.002,58193.0,58192.0,0.1394143]
[1726223655488,0.002,58193.0,58192.0,0.087918]
[1726223655489,0.03518974,58193.0,58192.0,0.087918]
[1726223655785,0.1300049,58193.0,58192.0,0.293836]
[1726223657388,0.1300049,58193.0,58192.0,0.207918]
[1726223657592,0.1300049,58193.0,58192.0,0.293836]
[1726223661996,0.1300049,58193.0,58192.0,0.207918]
[1726223662195,0.1300049,58193.0,58192.0,0.087918]
[1726223662506,0.002,58193.0,58192.0,0.38561458]
[1726223662687,0.002,58193.0,58192.0,0.29969658]
[1726223662990,0.002,58193.0,58192.0,0.29978259]
[1726223663386,0.002,58193.0,58192.0,0.3855164]
[1726223663994,0.002,58193.0,58192.0,0.29978259]
[1726223664192,0.002,58193.0,58192.0,0.38551986]
[1726223664589,0.002,58193.0,58192.0,0.74631986]
[1726223668793,0.002,58193.0,58192.0,0.38551986]
[1726223668997,0.002,58193.0,58192.0,0.66040186]
[1726223669202,0.002,58193.0,58192.0,0.6603673]
[1726223670301,0.002,58193.0,58192.0,0.7462853]
[1726223670598,0.07726085,58193.0,58192.0,0.534636]
[1726223670791,0.12999678,58193.0,58192.0,0.534636]
[1726223671193,0.12999678,58193.0,58192.0,0.448718]
[1726223671400,0.12999678,58193.0,58192.0,0.534636]
[1726223672297,0.12999678,58193.0,58192.0,0.448718]
[1726223672600,0.12999678,58193.0,58192.0,0.620554]
[1726223673492,0.12999678,58193.0,58192.0,1.736074]
[1726223673694,0.12999678,58193.0,58192.0,1.781974]
[1726223674201,0.12998353,58193.0,58192.0,2.142774]
[1726223676300,0.26613017,58193.0,58192.0,2.142774]
[1726223676601,0.31886064,58193.0,58192.0,2.142774]
[1726223677403,0.12998353,58193.0,58192.0,2.142774]
[1726223677606,0.002,58193.0,58192.0,2.35382615]
[1726223679099,0.002,58193.0,58192.0,1.75382615]
[1726223679297,0.0486,58207.0,58192.0,1.62851127]
[1726223679518,0.004,58206.0,58205.0,0.257694]
[1726223679799,0.085888,58213.0,58212.0,0.085887]
[1726223681405,0.205888,58213.0,58212.0,0.085887]
[1726223682002,0.12,58213.0,58212.0,0.085887]
[1726223682200,0.127,58213.0,58212.0,0.085887]
[1726223682703,0.134,58213.0,58212.0,0.085887]
[1726223688503,0.014,58213.0,58212.0,0.085887]
[1726223689813,0.134,58213.0,58212.0,0.085887]
[1726223692606,0.134,58213.0,58208.0,0.02423769]
[1726223692607,0.28151277,58213.0,58208.0,0.01132547]
[1726223692807,0.12796876,58212.0,58211.0,0.08589]
[1726223695721,0.13396876,58212.0,58211.0,0.08589]
[1726223696918,0.13396876,58212.0,58211.0,0.17178]
[1726223697110,0.13996876,58212.0,58211.0,0.17178]
[1726223697723,0.36345923,58212.0,58211.0,0.17178]
[1726223698120,0.13996876,58212.0,58211.0,0.17178]
[1726223698314,0.13996873,58212.0,58211.0,0.17178]
[1726223700624,0.012,58212.0,58211.0,0.1388558]
[1726223700921,0.085894,58209.0,58208.0,0.085891]
[1726223701126,0.205894,58209.0,58208.0,0.085891]
[1726223701717,0.566694,58209.0,58208.0,0.085891]
[1726223702321,0.208894,58209.0,58208.0,0.085891]
[1726223702531,0.211894,58209.0,58208.0,0.085891]
[1726223703518,0.2356736,58209.0,58208.0,0.085891]
[1726223706528,0.2356736,58209.0,58204.0,0.004]
[1726223706529,0.257694,58205.0,58204.0,0.004]
[1726223706728,0.085903,58202.0,58201.0,0.004]
[1726223707039,0.12,58202.0,58195.0,0.085913]
[1726223707222,0.12,58202.0,58194.0,0.3648]
[1726223707223,0.12,58199.0,58194.0,0.5093488]
[1726223707425,0.12,58199.0,58198.0,0.085909]
[1726223707426,0.205908,58199.0,58198.0,0.085909]
[1726223707727,0.18071088,58199.0,58198.0,0.085909]
[1726223708030,0.09480288,58199.0,58198.0,0.171818]
[1726223708621,0.09480288,58199.0,58198.0,1.287298]
[1726223709031,0.09580288,58199.0,58198.0,1.287298]
[1726223709553,0.09680288,58199.0,58198.0,1.289298]
[1726223711033,0.09680288,58199.0,58198.0,1.291298]
[1726223711237,0.09679114,58199.0,58198.0,1.291298]
[1726223712432,0.002,58199.0,58198.0,1.291298]
[1726223712632,0.04406523,58199.0,58198.0,1.291298]
[1726223712828,0.09679114,58199.0,58198.0,1.291298]
[1726223713435,0.15654703,58199.0,58198.0,1.291298]
[1726223713631,0.09679114,58199.0,58198.0,1.291298]
[1726223714532,0.09679114,58199.0,58198.0,2.012898]
[1726223715732,0.17170814,58202.0,58201.0,0.171808]
[1726223715932,0.17170814,58202.0,58201.0,0.74516418]
[1726223717027,0.17170814,58202.0,58201.0,0.74716418]
[1726223718137,0.085896,58207.0,58206.0,0.085897]
[1726223718432,0.085896,58207.0,58206.0,0.72459608]
[1726223719746,0.086896,58207.0,58206.0,0.72459608]
[1726223720835,0.001,58207.0,58206.0,0.81049308]
[1726223723541,0.001,58207.0,58206.0,0.83469685]
[1726223724039,0.450684,58215.0,58214.0,0.085885]
[1726223724246,0.446684,58215.0,58214.0,0.43536775]
[1726223724552,0.085884,58215.0,58214.0,0.33266599]
[1726223725441,0.094884,58215.0,58214.0,0.43534109]
[1726223725649,0.009,58215.0,58214.0,0.33266599]
[1726223726142,0.009,58215.0,58214.0,0.43532802]
[1726223726344,0.018,58215.0,58214.0,0.43532802]
[1726223727244,0.103884,58215.0,58214.0,0.31532802]
[1726223727544,0.103884,58215.0,58214.0,0.43532802]
[1726223727545,0.018,58215.0,58214.0,0.43532802]
[1726223727742,0.018,58215.0,58214.0,0.52121302]
[1726223730746,0.05117557,58215.0,58214.0,0.29177]
[1726223731239,0.05117557,58215.0,58214.0,0.377655]
[1726223731240,0.14595026,58215.0,58214.0,0.377655]
[1726223731439,0.22269238,58215.0,58214.0,0.377655]
[1726223731735,0.22269238,58215.0,58214.0,1.492975]
[1726223731736,0.14595026,58215.0,58214.0,1.492975]
[1726223732335,0.13695026,58215.0,58214.0,1.492975]
[1726223732548,0.13595026,58215.0,58214.0,1.492975]
[1726223732940,0.15255311,58218.0,58214.0,0.805885]
[1726223733142,0.15429925,58217.0,58215.0,0.51532]
[1726223733342,0.0484,58231.0,58224.0,0.17174]
[1726223733343,0.004,58225.0,58224.0,0.17174]
[1726223733543,0.0484,58231.0,58230.0,0.085862]
[1726223733748,0.0484,58231.0,58230.0,0.205862]
[1726223734640,0.25426,58231.0,58230.0,0.085862]
[1726223735246,0.13426,58231.0,58230.0,0.085862]
[1726223735642,0.14426,58231.0,58230.0,0.086862]
[1726223735841,0.15426,58231.0,58230.0,0.087862]
[1726223736839,0.27426,58231.0,58230.0,0.087862]
[1726223745859,0.36901612,58231.0,58230.0,0.087862]
[1726223749953,0.085865,58228.0,58220.0,0.004]
[1726223750254,0.085871,58225.0,58224.0,0.08587]
[1726223750455,0.085873,58222.0,58221.0,0.446673]
[1726223750650,0.12792269,58222.0,58221.0,0.446673]
[1726223750851,0.18062912,58222.0,58221.0,0.3608]
[1726223751048,0.085882,58216.0,58215.0,0.446684]
[1726223751251,0.33331245,58216.0,58215.0,0.446684]
[1726223751455,0.38601888,58216.0,58215.0,0.446684]
[1726223751856,0.21475612,58216.0,58215.0,0.446684]
[1726223752959,0.21475612,58216.0,58215.0,0.545568]
[1726223752960,0.002,58216.0,58215.0,0.545568]
[1726223753657,0.002,58216.0,58215.0,0.459684]
[1726223754059,0.002,58216.0,58215.0,0.579684]
[1726223756462,0.002,58216.0,58215.0,0.459684]
[1726223756662,0.002,58216.0,58215.0,0.579684]
[1726223761063,0.04405665,58216.0,58215.0,0.579684]
[1726223761771,0.04405665,58216.0,58215.0,0.665568]
[1726223761957,0.1812315,58216.0,58215.0,0.665568]
[1726223762164,0.1812315,58216.0,58215.0,0.579684]
[1726223762568,0.1812315,58216.0,58215.0,0.665568]
[1726223763071,0.18122037,58216.0,58215.0,0.665568]
[1726223764870,0.18122037,58216.0,58215.0,0.579684]
[1726223765272,0.04405665,58216.0,58215.0,0.579684]
[1726223765676,0.04405665,58216.0,58215.0,0.665568]
[1726223765972,0.04405665,58216.0,58215.0,0.579684]
[1726223767068,0.04405665,58216.0,58215.0,0.665568]
[1726223767262,0.04405688,58216.0,58215.0,0.665568]
[1726223767469,0.04405688,58216.0,58215.0,0.579684]
[1726223767762,0.04405688,58216.0,58215.0,0.665568]
[1726223767967,0.04405688,58216.0,58215.0,0.79486559]
[1726223767968,0.002,58216.0,58215.0,0.79486559]
[1726223768772,0.15417072,58219.0,58218.0,0.085879]
[1726223768974,0.085875,58221.0,58220.0,0.085876]
[1726223769180,0.085875,58221.0,58220.0,0.1542053]
[1726223769377,0.301571,58224.0,58223.0,0.085872]
[1726223769671,0.0472,58224.0,58223.0,0.171744]
[1726223769980,0.3608,58225.0,58224.0,0.08587]
[1726223770273,0.3608,58225.0,58224.0,0.27418181]
[1726223771075,0.3608,58225.0,58224.0,0.20587]
[1726223772179,0.3638,58225.0,58224.0,0.20587]
[1726223773178,0.3678,58225.0,58224.0,0.20587]
[1726223775582,0.3678,58225.0,58224.0,0.32175405]
[1726223775880,0.007,58225.0,58224.0,1.00043006]
[1726223776281,0.007,58225.0,58224.0,0.89776803]
[1726223778389,0.006,58225.0,58224.0,0.89776803]
[1726223778589,0.003,58225.0,58224.0,0.89776803]
[1726223778784,0.005,58225.0,58224.0,0.81189803]
[1726223778986,0.005,58225.0,58224.0,0.89776803]
[1726223779891,0.005,58225.0,58224.0,0.81189803]
[1726223780392,0.005,58225.0,58224.0,0.89776803]
[1726223782987,0.005,58225.0,58224.0,0.68255405]
[1726223783493,0.005,58225.0,58224.0,0.76842405]
[1726223784092,0.14218368,58225.0,58224.0,0.76842405]
[1726223784287,0.18423435,58225.0,58224.0,0.76842405]
[1726223784491,0.04705067,58225.0,58224.0,0.68255405]
[1726223786193,0.1421716,58225.0,58224.0,0.68255405]
[1726223786393,0.23692965,58225.0,58224.0,0.68255405]
[1726223786693,0.09975805,58225.0,58224.0,0.68255405]
[1726223787096,0.09975805,58225.0,58224.0,0.76842405]
[1726223787299,0.09975805,58225.0,58224.0,0.68255405]
[1726223788197,0.09975805,58225.0,58224.0,0.76842405]
[1726223788503,0.09975805,58225.0,58224.0,0.68255405]
[1726223789202,0.09975805,58225.0,58224.0,0.76842405]
[1726223789406,0.09975805,58225.0,58224.0,0.68255405]
[1726223789990,0.005,58225.0,58224.0,0.68255405]
[1726223798202,0.005,58225.0,58224.0,0.76799378]
[1726223798398,0.005,58225.0,58224.0,0.89713096]
[1726223799411,0.005,58225.0,58224.0,0.81169123]
[1726223801212,0.005,58225.0,58224.0,0.68255405]
[1726223801402,0.005,58225.0,58224.0,0.81174222]
[1726223805118,0.005,58225.0,58224.0,0.68255405]
[1726223805815,0.09975609,58225.0,58224.0,0.68255405]
[1726223807216,0.09975609,58225.0,58224.0,0.47668405]
[1726223807518,0.13291868,58225.0,58224.0,0.59668405]
[1726223807719,0.18562509,58225.0,58224.0,0.59668405]
[1726223807915,0.27925803,58225.0,58224.0,0.59668405]
[1726223808220,0.09975609,58225.0,58224.0,0.59668405]
[1726223808423,0.28814512,58225.0,58224.0,0.59668405]
[1726223808723,0.09975609,58225.0,58224.0,0.59668405]
[1726223808906,0.28874758,58225.0,58224.0,0.59668405]
[1726223809108,0.09975609,58225.0,58224.0,0.59668405]
[1726223810617,0.09975609,58225.0,58224.0,0.23588405]
[1726223813219,0.005,58225.0,58224.0,0.51923181]
[1726223814525,0.04790383,58228.0,58227.0,0.085866]
[1726223814826,0.04790383,58228.0,58227.0,0.2151851]
[1726223815823,0.04790383,58228.0,58227.0,0.21484943]
[1726223816026,0.05290383,58228.0,58227.0,0.21584943]
[1726223816824,0.05890383,58228.0,58227.0,0.21684943]
[1726223818523,0.05890383,58228.0,58227.0,0.31955862]
[1726223819921,0.011,58228.0,58227.0,0.31955862]
[1726223820126,0.011,58228.0,58227.0,0.087866]
[1726223820329,0.10575933,58228.0,58227.0,0.087866]
[1726223820619,0.10575934,58228.0,58227.0,0.087866]
[1726223824328,0.10575933,58228.0,58227.0,0.087866]
[1726223825324,0.29473756,58228.0,58227.0,0.087866]
[1726223825526,0.38060256,58228.0,58227.0,0.087866]
[1726223827429,0.19162433,58228.0,58227.0,0.087866]
[1726223828231,0.03671911,58228.0,58227.0,0.37050246]
[1726223829030,0.494861,58231.0,58230.0,0.085862]
[1726223829230,0.494861,58231.0,58230.0,0.21482235]
[1726223830328,0.502861,58231.0,58230.0,0.21582235]
[1726223830626,0.425,58231.0,58230.0,0.21682235]
[1726223831223,0.425,58231.0,58230.0,0.30268435]
[1726223831429,0.016,58231.0,58230.0,0.30268435]
[1726223831629,0.016,58231.0,58230.0,0.21682235]
[1726223834032,0.016,58231.0,58230.0,0.21635238]
[1726223835126,0.11075608,58231.0,58230.0,0.087862]
[1726223837135,0.19661608,58231.0,58230.0,0.087862]
[1726223838931,0.11075643,58231.0,58230.0,0.087862]
[1726223841838,0.11075643,58231.0,58230.0,0.173724]
[1726223842030,0.11075643,58231.0,58230.0,0.087862]
[1726223842225,0.11075643,58231.0,58230.0,0.173724]
[1726223842431,0.11075643,58231.0,58230.0,0.087862]
[1726223842630,0.11075643,58231.0,58230.0,0.173724]
[1726223842831,0.11075643,58231.0,58230.0,0.087862]
[1726223843039,0.11075643,58231.0,58230.0,0.173724]
[1726223843338,0.016,58231.0,58230.0,0.11841785]
[1726223843530,0.016,58231.0,58230.0,0.20427985]
[1726223846740,0.016,58231.0,58230.0,0.29014185]
[1726223846938,0.004,58238.0,58237.0,0.257553]
[1726223847133,0.089839,58246.0,58237.0,0.17139858]
[1726223847334,0.05246001,58250.0,58245.0,0.4808]
[1726223847652,0.0475,58250.0,58249.0,0.205834]
[1726223847937,0.133332,58250.0,58249.0,0.205834]
[1726223848731,0.085829,58253.0,58252.0,0.085828]
[1726223849047,0.0293953,58253.0,58252.0,0.446628]
[1726223849234,0.085828,58253.0,58252.0,0.446628]
[1726223850143,0.04403359,58253.0,58252.0,0.567628]
[1726223850447,0.09671984,58253.0,58252.0,0.567628]
[1726223850636,0.10071984,58253.0,58252.0,0.568628]
[1726223853343,0.10071984,58253.0,58252.0,0.59860417]
[1726223854249,0.19408132,58253.0,58252.0,0.59860417]
[1726223854446,0.10071984,58253.0,58252.0,0.59860417]
[1726223856045,0.10071984,58253.0,58252.0,0.47860417]
[1726223856253,0.10071984,58253.0,58252.0,0.59760417]
[1726223856254,0.09871984,58253.0,58252.0,0.59760417]
[1726223856551,0.09971984,58253.0,58252.0,0.59760417]
[1726223856847,0.09571984,58253.0,58252.0,0.59660417]
[1726223857053,0.09471984,58253.0,58252.0,0.59660417]
[1726223857254,0.09471984,58253.0,58252.0,0.60160417]
[1726223858044,0.085825,58255.0,58254.0,0.085826]
[1726223862749,0.12,58256.0,58252.0,0.51221617]
[1726223862750,0.085828,58253.0,58252.0,0.00144]
[1726223862954,0.085828,58253.0,58248.0,0.12]
[1726223862955,0.085834,58250.0,58249.0,0.085833]
[1726223863944,0.085834,58250.0,58248.0,0.12]
[1726223863945,0.36168,58256.0,58248.0,0.12]
[1726223864146,0.085825,58255.0,58254.0,0.085825]
[1726223865346,0.085825,58255.0,58254.0,0.205825]
[1726223866752,0.11958894,58258.0,58255.0,0.085825]
[1726223866955,0.13432,58259.0,58258.0,0.08582]
[1726223867149,0.1646088,58259.0,58258.0,0.08582]
[1726223869449,0.1706088,58259.0,58258.0,0.08582]
[1726223872059,0.1706088,58259.0,58258.0,0.11533223]
[1726223872254,0.29019774,58259.0,58258.0,0.11533223]
[1726223873257,0.3268884,58259.0,58257.0,0.03928329]
[1726223873460,0.1562796,58258.0,58257.0,0.12510529]
[1726223873965,0.2420996,58258.0,58257.0,0.12510529]
[1726223875456,0.2420996,58258.0,58257.0,0.085822]
[1726223875668,0.003,58258.0,58257.0,0.085822]
[1726223875869,0.08882,58258.0,58257.0,0.085822]
[1726223876680,0.09082,58258.0,58257.0,0.085822]
[1726223880472,0.09082,58258.0,58253.0,0.04608806]
[1726223880473,0.171656,58253.0,58252.0,0.00156]
[1726223880665,0.171656,58253.0,58246.0,0.085838]
[1726223880666,0.61812777,58253.0,58246.0,0.085838]
[1726223880868,0.12,58247.0,58246.0,0.085838]
[1726223881269,0.085838,58246.0,58245.0,0.3608]
[1726223881471,0.136338,58246.0,58245.0,0.3608]
[1726223882174,0.222176,58246.0,58245.0,0.3608]
[1726223882574,0.222176,58246.0,58239.0,0.128]
[1726223882575,0.085847,58240.0,58239.0,0.213848]
[1726223882777,0.085847,58240.0,58239.0,0.205848]
[1726223883286,0.085847,58240.0,58234.0,0.0016]
[1726223883287,0.085854,58235.0,58234.0,0.0016]
[1726223883581,0.40285202,58235.0,58232.0,0.12]
[1726223883880,0.085857,58233.0,58232.0,0.12]
[1726223884371,0.51142391,58240.0,58232.0,0.4808]
[1726223884372,0.51234391,58240.0,58232.0,0.4808]
[1726223884575,0.59727091,58240.0,58239.0,0.011]
[1726223885184,1.79823791,58240.0,58239.0,0.011]
[1726223885474,1.67823791,58240.0,58239.0,0.022]
[1726223885679,1.59239091,58240.0,58239.0,0.022]
[1726223885971,1.11239091,58240.0,58239.0,0.022]
[1726223886172,1.71239091,58240.0,58239.0,0.015]
[1726223886380,1.11239091,58240.0,58239.0,0.015]
[1726223886566,1.71239091,58240.0,58239.0,0.015]
[1726223886768,1.11239091,58240.0,58239.0,0.004]
[1726223887564,0.59727091,58240.0,58239.0,0.007]
[1726223887971,1.19823791,58240.0,58239.0,0.007]
[1726223888270,1.79823791,58240.0,58239.0,0.007]
[1726223888977,1.67823791,58240.0,58239.0,0.007]
[1726223889179,1.79823791,58240.0,58239.0,0.007]
[1726223890769,0.56311791,58240.0,58239.0,0.007]
[1726223891083,0.68311791,58240.0,58239.0,0.007]
[1726223891485,1.79823791,58240.0,58239.0,0.007]
[1726223892184,1.07823791,58240.0,58239.0,0.007]
[1726223892383,1.19823791,58240.0,58239.0,0.007]
[1726223892881,0.68311791,58240.0,58239.0,0.007]
[1726223895074,0.76896491,58240.0,58239.0,0.007]
[1726223895275,0.81101316,58240.0,58239.0,0.007]
[1726223895878,0.72516616,58240.0,58239.0,0.007]
[1726223896082,0.86371913,58240.0,58239.0,0.007]
[1726223896679,1.01744087,58240.0,58239.0,0.007]
[1726223896876,0.86371913,58240.0,58239.0,0.007]
[1726223899872,0.86372018,58240.0,58239.0,0.007]
[1726223902384,1.03535926,58240.0,58239.0,0.007]
[1726223903390,0.76896491,58240.0,58239.0,0.007]
[1726223903790,0.47727091,58240.0,58239.0,0.007]
[1726223904786,0.446647,58240.0,58239.0,0.007]
[1726223905391,0.3608,58240.0,58239.0,0.092848]
[1726223908598,0.004,58248.0,58239.0,0.007]
[1726223908599,0.08584,58245.0,58239.0,0.007]
[1726223908781,0.085836,58248.0,58247.0,0.085836]
[1726223908976,0.085836,58248.0,58247.0,0.205836]
[1726223909183,0.085836,58248.0,58247.0,0.085836]
[1726223909390,0.085836,58248.0,58247.0,0.13709118]
[1726223909587,0.085836,58248.0,58247.0,0.085836]
[1726223910489,0.12987256,58248.0,58247.0,0.085836]
[1726223910685,0.18256253,58248.0,58247.0,0.085836]
[1726223911585,0.09672653,58248.0,58247.0,0.205836]
[1726223911899,0.10172653,58248.0,58247.0,0.205836]
[1726223912186,0.10172653,58248.0,58247.0,0.285836]
[1726223914286,0.10171952,58248.0,58247.0,0.285836]
[1726223914993,0.27283764,58248.0,58247.0,0.285836]
[1726223915379,0.10171952,58248.0,58247.0,0.285836]
[1726223916683,0.18755452,58248.0,58247.0,0.085836]
[1726223918188,0.358605,58248.0,58247.0,0.085836]
[1726223918496,0.007,58248.0,58247.0,1.57255]
[1726223918791,0.007,58248.0,58247.0,0.97255]
[1726223918985,0.007,58248.0,58247.0,0.45751]
[1726223921093,0.007,58248.0,58247.0,0.371673]
[1726223921392,0.007,58248.0,58247.0,0.285836]
[1726223921595,0.007,58248.0,58247.0,0.085836]
[1726223923199,0.092835,58248.0,58247.0,0.085836]
[1726223927584,0.007,58248.0,58247.0,0.085836]
[1726223928794,0.10171908,58248.0,58247.0,0.085836]
[1726223930299,0.18755408,58248.0,58247.0,0.085836]
[1726223933098,0.092835,58248.0,58247.0,0.085836]
[1726223936792,0.007,58248.0,58247.0,0.085836]
[1726223937390,0.007,58248.0,58247.0,0.13709118]
[1726223938404,0.007,58248.0,58247.0,0.085836]
[1726223941004,0.1017235,58248.0,58247.0,0.085836]
[1726223942506,0.1017235,58248.0,58247.0,0.171673]
[1726223942696,0.1017235,58248.0,58247.0,0.219373]
[1726223943091,0.1017235,58248.0,58247.0,0.339373]
[1726223943498,0.10172333,58248.0,58247.0,0.339373]
[1726223943890,0.10172333,58248.0,58247.0,0.42521]
[1726223947908,0.007,58248.0,58247.0,0.42521]
[1726223948408,0.007,58248.0,58247.0,0.339373]
[1726223952206,0.007,58248.0,58247.0,0.133536]
[1726223952611,0.007,58248.0,58247.0,0.253536]
[1726223955712,0.212835,58248.0,58247.0,0.133536]
[1726223955999,0.212835,58248.0,58247.0,0.085836]
[1726223956706,0.092835,58248.0,58247.0,0.13712481]
[1726223956911,0.007,58248.0,58247.0,0.13712481]
[1726223959915,0.007,58248.0,58247.0,0.085836]
[1726223963316,0.10172552,58248.0,58247.0,0.085836]
[1726223966917,0.19579799,58248.0,58247.0,0.085836]
[1726223967213,0.28163299,58248.0,58247.0,0.085836]
[1726223967425,0.3763361,58248.0,58247.0,0.085836]
[1726223967720,0.085838,58247.0,58240.0,0.004]
[1726223967923,0.085838,58247.0,58237.0,0.3608]
[1726223967924,0.085843,58244.0,58243.0,0.085841]
[1726223968108,0.18057402,58244.0,58243.0,0.085841]
[1726223968725,0.36933107,58244.0,58243.0,0.085841]
[1726223968918,0.36933107,58244.0,58240.0,0.085845]
[1726223968919,0.085847,58241.0,58240.0,0.085845]
[1726223969122,0.30057802,58241.0,58240.0,0.087845]
[1726223970026,0.30057802,58241.0,58240.0,0.089845]
[1726223970920,0.16289834,58241.0,58240.0,0.30621422]
[1726223971128,0.16289834,58241.0,58240.0,0.17539258]
[1726223971623,0.12,58241.0,58240.0,0.53619258]
[1726223971925,0.0485,58246.0,58240.0,0.49562155]
[1726223972121,0.089833,58250.0,58249.0,0.085834]
[1726223972319,0.086822,58257.0,58252.0,0.085829]
[1726223972320,0.085828,58253.0,58252.0,0.085829]
[1726223972623,0.12,58255.0,58254.0,0.085826]
[1726223972824,0.12,58255.0,58254.0,0.13706211]
[1726223973031,0.205825,58255.0,58254.0,0.13706211]
[1726223973815,0.210825,58255.0,58254.0,0.13806211]
[1726223975422,0.212825,58255.0,58254.0,0.13906211]
[1726223976327,0.212825,58255.0,58254.0,0.05323611]
[1726223976627,0.212825,58255.0,58254.0,0.13906211]
[1726223977419,0.127,58255.0,58254.0,0.13906211]
[1726223977620,0.007,58255.0,58254.0,0.087826]
[1726223978724,0.127,58255.0,58254.0,0.087826]
[1726223978931,0.125,58255.0,58254.0,0.086826]
[1726223979117,0.127,58255.0,58254.0,0.086826]
[1726223979316,0.122,58255.0,58254.0,0.085826]
[1726223979516,0.005,58255.0,58254.0,0.085826]
[1726223985434,0.005,58255.0,58254.0,0.257478]
[1726223992444,0.003001,58255.0,58254.0,1.458304]
[1726223992631,0.004,58265.0,58264.0,0.257433]
[1726223992832,0.085806,58269.0,58268.0,0.085806]
[1726223993441,0.085801,58272.0,58271.0,0.0858]
[1726223995336,0.085801,58272.0,58271.0,0.0868]
[1726223995845,0.086801,58272.0,58271.0,0.0878]
[1726223996844,0.18149344,58272.0,58271.0,0.0878]
[1726223999845,0.54229344,58272.0,58271.0,0.002]
[1726224000344,0.62809444,58272.0,58271.0,0.002]
[1726224000643,0.54229344,58272.0,58271.0,0.087801]
[1726224001450,0.48962243,58272.0,58271.0,0.087801]
[1726224002139,0.60962609,58272.0,58271.0,0.087801]
[1726224002340,0.69542709,58272.0,58271.0,0.002]
[1726224002535,1.81026709,58272.0,58265.0,0.004]
[1726224002753,0.085809,58266.0,58265.0,0.08581]
[1726224003548,0.085813,58263.0,58262.0,0.11662309]
[1726224003850,0.205813,58263.0,58262.0,0.085814]
[1726224004954,0.086809,58266.0,58265.0,0.08581]
[1726224005250,0.001,58266.0,58265.0,0.08581]
[1726224005440,0.205807,58267.0,58266.0,0.085809]
[1726224005644,0.205807,58267.0,58266.0,0.446609]
[1726224006248,0.12,58267.0,58266.0,0.446609]
[1726224006649,0.122,58267.0,58266.0,0.447609]
[1726224007153,0.207807,58267.0,58266.0,0.447609]
[1726224007453,0.207807,58267.0,58266.0,0.3618]
[1726224007649,0.2498316,58267.0,58266.0,0.3618]
[1726224008246,0.2508316,58267.0,58266.0,0.3628]
[1726224009259,0.38777958,58267.0,58266.0,0.3628]
[1726224009453,0.36505796,58267.0,58266.0,0.002]
[1726224011961,0.45086496,58267.0,58266.0,0.002]
[1726224013353,0.36505796,58267.0,58266.0,0.002]
[1726224014653,0.67386469,58267.0,58266.0,0.002]
[1726224015055,0.45086496,58267.0,58266.0,0.002]
[1726224015549,0.45086496,58267.0,58266.0,0.00154779]
[1726224016355,1.47993796,58267.0,58258.0,0.004]
[1726224016560,0.171646,58256.0,58255.0,0.004]
[1726224016864,0.085829,58252.0,58248.0,0.004]
[1726224017063,0.12,58252.0,58248.0,0.085834]
[1726224017360,0.12,58249.0,58248.0,0.085834]
[1726224018255,0.12,58249.0,58248.0,0.096834]
[1726224019268,0.12,58249.0,58248.0,0.107834]
[1726224020151,0.12,58249.0,58248.0,0.096834]
[1726224020356,0.12,58249.0,58248.0,0.104834]
[1726224020864,0.12,58251.0,58248.0,0.019]
[1726224021257,0.205834,58249.0,58248.0,0.008]
[1726224021459,0.205834,58249.0,58248.0,0.016]
[1726224022068,0.205834,58249.0,58248.0,0.008]
[1726224022362,0.205834,58249.0,58248.0,0.016]
[1726224022558,0.291668,58249.0,58248.0,0.016]
[1726224023661,0.291668,58249.0,58248.0,0.008]
[1726224023861,0.291668,58249.0,58248.0,0.016]
[1726224027266,0.085842,58243.0,58242.0,0.0475]
[1726224027465,0.205842,58243.0,58242.0,0.0475]
[1726224027663,0.085842,58243.0,58242.0,0.0475]
[1726224028470,0.085842,58243.0,58242.0,0.0755]
[1726224029066,0.085842,58243.0,58242.0,0.161344]
[1726224029265,0.08584,58245.0,58244.0,0.085841]
[1726224029467,0.13723382,58252.0,58249.0,0.085834]
[1726224029771,0.13723382,58256.0,58254.0,0.085826]
[1726224029963,0.13723382,58256.0,58255.0,0.0943]
[1726224030161,0.17926517,58256.0,58255.0,0.0943]
[1726224030357,0.17926517,58256.0,58255.0,0.180125]
[1726224030766,0.17926516,58256.0,58255.0,0.180125]